fUST/lending_fUST_20251021
["ID","MTS","AMOUNT","RATE_DAILY","PERIOD"]
[391942136,1761016242087,-151.56026,0.000319,3]
[391942137,1761016242096,-151.100433,0.000319,3]
[391942138,1761016242106,-1978.650582,0.000319,12]
[391942139,1761016242116,-159.889584,0.000319,30]
[391942140,1761016242126,-152.012953,0.000319,30]
[391942141,1761016242135,-151.0,0.000319,30]
[391942142,1761016242145,-226.489352,0.000319,30]
[391942143,1761016242155,-152.659347,0.000319,30]
[391942144,1761016242164,-151.0,0.000319,30]
[391942146,1761016242174,-155.95,0.00031927,15]
[391942148,1761016242183,-250.0,0.0003194,2]
[391942150,1761016242192,-160.0,0.00031942,5]
[391942152,1761016242203,-158.46756255,0.00031945,30]
[391942154,1761016242212,-442.5,0.00031973,2]
[391942156,1761016242222,-155.346384,0.00032,30]
[391942158,1761016242231,-154.286573,0.00032,30]
[391942160,1761016242240,-762.0,0.00032,2]
[391942162,1761016242249,-155.95,0.00032027,15]
[391942164,1761016242259,-152.655472,0.00032073,30]
[391942166,1761016242268,-167.780883,0.00032073,30]
[391942168,1761016242277,-2805.62,0.000321,2]
[391942170,1761016242287,-151.0,0.00032101,30]
[391942172,1761016242296,-151.0,0.00032101,30]
[391942173,1761016242305,-161.295173,0.00032101,30]
[391942176,1761016242315,-151.0,0.00032101,30]
[391942178,1761016242325,-151.0,0.00032101,30]
[391942179,1761016242336,-151.0,0.00032101,30]
[391942181,1761016242345,-245.301205,0.00032101,30]
[391942183,1761016242354,-157.120058,0.00032101,30]
[391942185,1761016242364,-151.0,0.00032101,15]
[391942187,1761016242373,-155.95,0.00032127,15]
[391942189,1761016242383,-413.0,0.00032209,2]
[391942191,1761016242392,-151.56026,0.00032215,2]
[391942193,1761016242401,-151.100433,0.00032215,2]
[391942195,1761016242410,-158.46756255,0.00032219,30]
[391942197,1761016242420,-155.95,0.00032227,15]
[391942199,1761016242429,-413.0,0.000323,7]
[391942201,1761016242439,-5000.0,0.00032304,5]
[391942203,1761016242449,-155.95,0.00032327,15]
[391942205,1761016242459,-413.0,0.00032336,2]
[391942207,1761016242468,-500.0,0.00032379,7]
[391942209,1761016242479,-413.0,0.00032388,7]
[391942212,1761016242488,-151.0,0.00032397,30]
[391942214,1761016242498,-600.0,0.00032397,2]
[391942215,1761016242508,-1000.0,0.000324,12]
[391942218,1761016242518,-1800.0,0.00032404,7]
[391942219,1761016242527,-151.56026,0.00032406,7]
[391942222,1761016242537,-151.100433,0.00032406,7]
[391942223,1761016242546,-800.0,0.00032419,2]
[391942225,1761016242555,-250.0,0.00032421,5]
[391942228,1761016242565,-250.0,0.00032421,5]
[391942230,1761016242574,-300.0,0.00032421,5]
[391942233,1761016242584,-414.0,0.00032424,2]
[391942236,1761016242593,-155.95,0.00032427,15]
[391942239,1761016242602,-800.0,0.00032431,2]
[391942242,1761016242612,-245.16106734,0.00032462,2]
[391942245,1761016242621,-800.0,0.00032496,2]
[391942248,1761016242631,-500.0,0.000325,5]
[391942251,1761016242640,-500.0,0.000325,30]
[391942254,1761016242649,-500.0,0.000325,5]
[391942257,1761016242659,-500.0,0.000325,5]
[391942260,1761016242668,-500.0,0.000325,5]
[391942263,1761016242678,-500.0,0.000325,5]
[391942266,1761016242688,-500.0,0.000325,30]
[391942270,1761016242698,-500.0,0.000325,5]
[391942273,1761016242707,-158.46756255,0.00032521,30]
[391942276,1761016242717,-155.95,0.00032527,15]
[391942278,1761016242727,-413.0,0.00032535,2]
[391942280,1761016242737,-800.0,0.00032551,2]
[391942281,1761016242746,-413.0,0.00032552,2]
[391942283,1761016242755,-180.0,0.00032561,2]
[391942285,1761016242764,-800.0,0.00032565,2]
[391942286,1761016242774,-465.0,0.00032573,2]
[391942287,1761016242784,-246.994,0.00032595,2]
[391942289,1761016242793,-155.95,0.00032627,15]
[391942290,1761016242802,-800.0,0.0003271,2]
[391942291,1761016242811,-506.74480083,0.00032714,7]
[391942293,1761016242821,-800.0,0.00032714,2]
[391942295,1761016242831,-155.95,0.00032727,15]
[391942298,1761016242841,-600.0,0.00032735,2]
[391942300,1761016242851,-158.46756255,0.00032795,30]
[391942304,1761016242860,-800.0,0.00032819,2]
[391942306,1761016242871,-156.07290778,0.00032827,15]
[391942309,1761016242880,-800.0,0.00032837,2]
[391942313,1761016242890,-5500.0,0.00032852,5]
[391942315,1761016242899,-2426.55325871,0.00032866,2]
[391942316,1761016242908,-559.17287592,0.00032866,2]
[391942318,1761016242918,-414.0,0.00032869,7]
[391942320,1761016242926,-500.71478119,0.00032873,5]
[391942322,1761016242935,-92624.19,0.00032873,14]
[391942324,1761016242945,-155.0,0.00032875,2]
[391942326,1761016242954,-500.0,0.00032876,15]
[391942328,1761016242963,-334.67770878,0.00032876,15]
[391942330,1761016242973,-2054.8617786,0.00032876,2]
[391942332,1761016242982,-514.04331648,0.00032876,15]
[391942334,1761016242991,-1000.0,0.00032876,5]
[391942336,1761016243001,-1000.0,0.00032876,5]
[391942338,1761016243011,-1000.0,0.00032876,5]
[391942340,1761016243020,-529.6675565,0.00032876,5]
[391942342,1761016243029,-3167.89,0.00032876,120]
[391942344,1761016243042,-151.0,0.00032877,30]
[391942346,1761016243051,-413.0,0.0003288,2]
[391942348,1761016243061,-411.0,0.00032887,2]
[391942350,1761016243071,-181.91130196,0.000329,120]
[391942352,1761016243080,-5179.08185769,0.000329,120]
[391942354,1761016243089,-1339.24488544,0.000329,120]
[391942356,1761016243099,-1113.94017139,0.000329,120]
[391942358,1761016243108,-1490.9847906,0.000329,120]
[391942360,1761016243119,-171.60060473,0.000329,120]
[391942362,1761016243128,-401.10852396,0.000329,120]
[391942363,1761016243137,-852.82014543,0.000329,120]
[391942364,1761016243146,-470.16883568,0.000329,120]
[391942365,1761016243156,-151.0,0.000329,30]
[391942366,1761016243166,-169.72275025,0.000329,120]
[391942367,1761016243175,-151.0,0.000329,30]
[391942368,1761016243184,-151.0,0.000329,30]
[391942369,1761016243194,-151.0,0.000329,30]
[391942370,1761016243203,-151.0,0.000329,30]
[391942371,1761016243212,-151.56026,0.000329,10]
[391942372,1761016243224,-1000.0,0.000329,12]
[391942373,1761016243233,-413.0,0.00032908,2]
[391942374,1761016243243,-413.0,0.00032949,2]
[391942376,1761016243252,-413.0,0.00032962,2]
[391942378,1761016243261,-390.11853006,0.00032968,5]
[391942380,1761016243271,-350.0,0.00032968,5]
[391942382,1761016243281,-450.0,0.00032968,5]
[391942384,1761016243290,-166.7950135,0.00032969,30]
[391942386,1761016243299,-304.9237144,0.00032969,30]
[391942388,1761016243309,-603.4569063,0.00032969,30]
[391942390,1761016243318,-800.0,0.00032971,2]
[391942392,1761016243327,-413.0,0.00032981,7]
[391942393,1761016243336,-161.0,0.00033,60]
[391942395,1761016243345,-161.0,0.00033,60]
[391942397,1761016243354,-414.0,0.00033028,7]
[391942399,1761016243363,-158.46756255,0.00033068,30]
[391942400,1761016243373,-600.0,0.00033072,2]
[391942402,1761016243382,-800.0,0.00033086,2]
[391942404,1761016243392,-1173.73074926,0.00033132,5]
[391942405,1761016243401,-3000.57828438,0.00033132,5]
[391942406,1761016243410,-151.56026,0.00033169,10]
[391942407,1761016243419,-151.100433,0.00033169,10]
[391942409,1761016243428,-487.5,0.00033173,2]
[391942411,1761016243437,-800.0,0.00033179,2]
[391942413,1761016243446,-800.0,0.00033194,2]
[391942415,1761016243455,-12556.2,0.000332,14]
[391942417,1761016243465,-800.0,0.0003322,2]
[391942419,1761016243475,-1800.0,0.00033226,7]
[391942420,1761016243485,-4853.10651742,0.00033266,2]
[391942421,1761016243494,-1118.34575184,0.00033266,2]
[391942422,1761016243503,-155.23,0.00033275,120]
[391942423,1761016243512,-155.23,0.00033275,120]
[391942424,1761016243522,-87633.33125828,0.00033276,9]
[391942425,1761016243531,-153.252784,0.00033276,30]
[391942426,1761016243540,-151.0,0.00033276,30]
[391942427,1761016243550,-151.0,0.00033276,30]
[391942428,1761016243559,-151.0,0.00033276,30]
[391942429,1761016243568,-151.0,0.00033276,30]
[391942430,1761016243577,-160.829608,0.00033276,15]
[391942431,1761016243587,-151.0,0.00033276,30]
[391942432,1761016243597,-154.160189,0.00033276,30]
[391942433,1761016243606,-154.160189,0.00033276,30]
[391942434,1761016243615,-154.160189,0.00033276,30]
[391942435,1761016243624,-154.160189,0.00033276,30]
[391942436,1761016243634,-151.0,0.00033276,30]
[391942437,1761016243643,-151.0,0.00033276,30]
[391942438,1761016243653,-151.0,0.00033276,30]
[391942439,1761016243662,-172.999278,0.00033276,30]
[391942440,1761016243672,-172.999278,0.00033276,30]
[391942441,1761016243682,-172.999278,0.00033276,30]
[391942442,1761016243691,-2426.55325871,0.0003329,2]
[391942443,1761016243700,-559.17287592,0.0003329,2]
[391942444,1761016243709,-151.56026,0.00033298,22]
[391942445,1761016243718,-24827.0,0.000333,30]
[391942446,1761016243728,-250.0,0.000333,10]
[391942447,1761016243738,-4853.10651742,0.000333,2]
[391942448,1761016243748,-1118.34575184,0.000333,2]
[391942449,1761016243757,-92575.6360444,0.0003331,2]
[391942450,1761016243766,-152.898641,0.0003331,30]
[391942451,1761016243775,-153.66928,0.0003331,30]
[391942452,1761016243786,-1308.2494757,0.00033314,2]
[391942453,1761016243795,-864.0,0.00033318,30]
[391942454,1761016243804,-158.46756255,0.00033342,30]
[391942455,1761016243814,-800.0,0.00033346,2]
[391942456,1761016243824,-1012.422918,0.0003336,8]
[391942457,1761016243833,-800.0,0.00033361,2]
[391942458,1761016243842,-8761.83866256,0.00033376,14]
[391942459,1761016243853,-800.0,0.00033378,2]
[391942460,1761016243862,-1000.0,0.0003338,8]
[391942461,1761016243872,-292.52474511,0.00033399,14]
[391942462,1761016243882,-496.47127164,0.00033399,14]
[391942463,1761016243891,-514.84070869,0.00033399,14]
[391942464,1761016243900,-533.88981491,0.00033399,14]
[391942465,1761016243909,-553.64373807,0.00033399,14]
[391942466,1761016243919,-574.12855637,0.00033399,14]
[391942467,1761016243928,-595.37131296,0.00033399,14]
[391942468,1761016243937,-617.40005154,0.00033399,14]
[391942469,1761016243947,-640.24385345,0.00033399,14]
[391942470,1761016243956,-663.93287602,0.00033399,14]
[391942471,1761016243966,-688.49839244,0.00033399,14]
[391942472,1761016243975,-713.97283296,0.00033399,14]
[391942473,1761016243984,-740.38982778,0.00033399,14]
[391942474,1761016243995,-767.7842514,0.00033399,14]
[391942475,1761016244005,-796.19226871,0.00033399,14]
[391942476,1761016244014,-825.65138265,0.00033399,14]
[391942477,1761016244023,-1000.0,0.000334,8]
[391942478,1761016244033,-1000.0,0.000334,12]
[391942479,1761016244042,-250.0,0.000334,10]
[391942480,1761016244051,-205.808469,0.000334,2]
[391942481,1761016244061,-3160.68619614,0.000334,5]
[391942482,1761016244071,-600.0,0.0003341,2]
[391942483,1761016244080,-800.0,0.00033415,2]
[391942484,1761016244089,-1000.0,0.0003342,8]
[391942485,1761016244098,-800.0,0.00033425,2]
[391942486,1761016244107,-151.56026,0.00033437,10]
[391942487,1761016244117,-151.100433,0.00033437,10]
[391942488,1761016244127,-1000.0,0.0003344,8]
[391942489,1761016244137,-1000.0,0.0003346,8]
[391942490,1761016244147,-800.0,0.00033461,2]
[391942491,1761016244156,-800.0,0.00033463,2]
[391942492,1761016244165,-153.1283,0.00033467,30]
[391942493,1761016244174,-154.160189,0.00033476,30]
[391942494,1761016244183,-154.160189,0.00033476,30]
[391942495,1761016244192,-154.160189,0.00033476,30]
[391942496,1761016244201,-154.160189,0.00033476,30]
[391942497,1761016244210,-151.0,0.00033476,30]
[391942498,1761016244220,-2813.7061188,0.00033476,2]
[391942499,1761016244230,-2463.60233005,0.00033476,2]
[391942500,1761016244240,-173.501944,0.00033476,30]
[391942501,1761016244250,-199.535643,0.00033476,30]
[391942502,1761016244260,-6497.8044297,0.00033476,2]
[391942503,1761016244270,-172.999278,0.00033476,30]
[391942504,1761016244279,-172.999278,0.00033476,30]
[391942505,1761016244289,-172.999278,0.00033476,30]
[391942506,1761016244299,-1000.0,0.0003348,8]
[391942507,1761016244309,-151.0,0.00033482,30]
[391942508,1761016244318,-151.0,0.00033482,30]
[391942509,1761016244328,-151.0,0.00033482,30]
[391942510,1761016244337,-191.36516,0.00033482,30]
[391942511,1761016244347,-151.0,0.00033482,30]
[391942512,1761016244357,-151.0,0.00033482,30]
[391942513,1761016244366,-151.0,0.00033482,30]
[391942514,1761016244375,-151.0,0.00033482,30]
[391942515,1761016244385,-160.0,0.00033484,6]
[391942516,1761016244394,-161.3960451,0.00033484,5]
[391942517,1761016244404,-21331.91706215,0.000335,30]
[391942518,1761016244413,-500.0,0.000335,120]
[391942519,1761016244423,-300.0,0.000335,14]
[391942520,1761016244433,-252.47,0.000335,14]
[391942521,1761016244442,-1174.539424,0.000335,8]
[391942522,1761016244451,-1000.0,0.000335,8]
[391942523,1761016244460,-250.0,0.000335,10]
[391942524,1761016244469,-750.07998204,0.000335,14]
[391942525,1761016244479,-150.519951,0.000335,2]
[391942526,1761016244488,-162.1039,0.000335,2]
[391942527,1761016244498,-1507.932833,0.000335,12]
[391942528,1761016244507,-197.77374877,0.000335,14]
[391942529,1761016244516,-150.0,0.00033507,2]
[391942530,1761016244525,-450.0,0.00033516,5]
[391942531,1761016244534,-670.88794904,0.00033516,5]
[391942532,1761016244545,-1000.0,0.0003352,8]
[391942533,1761016244556,-1000.0,0.0003352,8]
[391942534,1761016244565,-1000.0,0.0003354,8]
[391942535,1761016244574,-1000.0,0.0003354,8]
[391942536,1761016244583,-1000.0,0.0003356,8]
[391942537,1761016244593,-1000.0,0.0003356,8]
[391942538,1761016244603,-3167.89,0.00033561,120]
[391942539,1761016244613,-254.26083572,0.00033566,4]
[391942540,1761016244624,-152.44,0.00033575,60]
[391942541,1761016244635,-2447.96139985,0.00033576,14]
[391942542,1761016244644,-395930.44529255,0.00033576,20]
[391942555,1761016545733,150.0,0.00022072,2]
[391942564,1761016693787,10000.0,0.00024075,2]
[391942566,1761016740428,0.01,0.00021926,2]
[391942567,1761016740453,149.99,0.00021926,2]
[391942568,1761016740913,150.0,0.00023919,2]
[391942569,1761016753684,461.376457,0.00013699,2]
[391942570,1761016753904,461.376457,0.00020187,2]
[391942571,1761016802898,417.15472785,0.00024075,2]
[391942572,1761016810946,150.0,0.00021954,2]
[391942573,1761016811429,150.0,0.00023949,2]
[391942575,1761016879578,150.0,0.00021915,2]
[391942576,1761016880031,150.0,0.00023907,2]
[391942577,1761016945942,150.0,0.00021896,2]
[391942578,1761016946424,150.0,0.00023887,2]
[391942580,1761016975553,8682.85527215,0.00024,2]
[391942581,1761016975577,10000.01,0.00024,2]
[391942582,1761016975598,1409.79472785,0.00024,2]
[391942583,1761017013418,150.0,0.00021901,2]
[391942584,1761017013904,150.0,0.00023892,2]
[391942585,1761017018415,150.0,0.00012943,30]
[391942586,1761017018901,150.0,0.00014119,30]
[391942587,1761017019403,150.0,0.00015296,30]
[391942588,1761017020200,150.0,0.00016473,30]
[391942589,1761017020348,150.0,0.00017649,30]
[391942590,1761017020813,157.36,0.00018826,30]
[391942591,1761017021286,183.58,0.00020002,30]
[391942592,1761017022022,209.81,0.00021179,30]
[391942593,1761017090975,150.0,0.0002192,2]
[391942594,1761017091474,150.0,0.00023913,2]
[391942595,1761017095644,150.0,0.00013148,30]
[391942596,1761017096122,150.0,0.00014344,30]
[391942597,1761017096568,150.0,0.00015539,30]
[391942598,1761017097040,150.0,0.00016734,30]
[391942599,1761017097638,150.0,0.0001793,30]
[391942600,1761017131413,5000.0,0.00024075,2]
[391942601,1761017154371,223.70978899,0.00024075,2]
[391942602,1761017165444,150.0,0.00021943,2]
[391942603,1761017165892,150.0,0.00023938,2]
[391942604,1761017170216,150.0,0.0001313,30]
[391942605,1761017170662,150.0,0.00014324,30]
[391942606,1761017183924,4026.30021101,0.00024075,2]
[391942607,1761017183948,973.69978899,0.00024075,2]
[391942608,1761017238589,150.0,0.00021945,2]
[391942609,1761017239358,150.0,0.0002394,2]
[391942612,1761017284356,4889.93801334,0.000237,30]
[391942615,1761017308453,150.0,0.00021958,2]
[391942616,1761017308873,150.0,0.00023954,2]
[391942619,1761017353209,320.9297002,0.00030137,120]
[391942620,1761017375592,150.0,0.00021951,2]
[391942621,1761017376707,150.0,0.00023946,2]
[391942622,1761017377120,499.99226,0.00024075,2]
[391942623,1761017390151,2736.37993767,0.00024075,2]
[391942624,1761017390172,2263.62006233,0.00024075,2]
[391942625,1761017391862,250.0,0.00021,30]
[391942626,1761017398124,5000.0,0.00024075,2]
[391942627,1761017402349,250.0,0.00021,30]
[391942628,1761017404671,4750.01,0.00024075,2]
[391942629,1761017404694,5249.99,0.00024075,2]
[391942630,1761017407133,249.14291256,0.00024075,2]
[391942631,1761017413136,500.0,0.00030137,120]
[391942632,1761017417229,4500.87708744,0.00024075,2]
[391942633,1761017417252,538.12291256,0.00024075,2]
[391942634,1761017422726,5000.0,0.00024,2]
[391942683,1761017432274,-1276.84590395,0.00024142,2]
[391942699,1761017438155,-806.98446684,0.00024142,2]
[391942701,1761017438165,-295.29,0.00024269,10]
[391942702,1761017438175,-150.0,0.00024953,2]
[391942703,1761017438184,-2355.9801257,0.00025198,2]
[391942704,1761017438194,-300.0,0.00025451,20]
[391942705,1761017438203,-300.0,0.00025451,20]
[391942706,1761017438213,-300.0,0.00025451,20]
[391942707,1761017438222,-300.0,0.00025451,20]
[391942708,1761017438233,-300.0,0.00025451,20]
[391942709,1761017438242,-300.0,0.00025451,20]
[391942710,1761017438251,-300.0,0.00025451,20]
[391942711,1761017438261,-300.0,0.00025451,20]
[391942712,1761017438270,-300.0,0.00025451,20]
[391942713,1761017438280,-300.0,0.00025451,20]
[391942714,1761017438289,-300.0,0.00025451,20]
[391942715,1761017438299,-300.0,0.00025451,20]
[391942716,1761017438309,-300.0,0.00025451,20]
[391942717,1761017438318,-300.0,0.00025451,20]
[391942718,1761017438328,-300.0,0.00025451,20]
[391942719,1761017438339,-540.51,0.00025451,2]
[391942720,1761017438348,-623.4888645,0.00025538,2]
[391942721,1761017438359,-172.5,0.00025553,2]
[391942722,1761017438368,-157.20703215,0.00025699,17]
[391942723,1761017438377,-540.51,0.00025725,2]
[391942724,1761017438387,-150.0,0.00025906,2]
[391942725,1761017438397,-540.51,0.00025999,2]
[391942726,1761017438406,-195.0,0.00026153,2]
[391942727,1761017438415,-540.51,0.00026273,2]
[391942728,1761017438424,-540.52663673,0.00026547,2]
[391942729,1761017438434,-461.376457,0.00026676,2]
[391942730,1761017438443,-217.5,0.00026753,2]
[391942731,1761017438453,-442.61167006,0.00026787,2]
[391942732,1761017438463,-3051.81398207,0.000268,2]
[391942733,1761017438473,-1442.74574081,0.000268,3]
[391942734,1761017438483,-2250.96489504,0.000268,2]
[391942735,1761017438492,-500.0,0.00026873,2]
[391942736,1761017438502,-27887.2768477,0.00026887,2]
[391942737,1761017438511,-5601.69833755,0.00026887,2]
[391942738,1761017438521,-254.06,0.00026887,3]
[391942739,1761017438530,-762.23,0.00026887,3]
[391942740,1761017438540,-1779.63,0.00026887,10]
[391942741,1761017438550,-1483.03,0.00026887,10]
[391942742,1761017438559,-1235.86,0.00026887,10]
[391942743,1761017438568,-370000.0,0.00026897,2]
[391942744,1761017438577,-13781.8,0.000269,7]
[391942745,1761017438586,-170.895243,0.00027,3]
[391942746,1761017438596,-170.895243,0.00027,2]
[391942747,1761017438605,-151.100433,0.00027,3]
[391942748,1761017438614,-151.100433,0.00027,2]
[391942749,1761017438624,-221.57398727,0.00027,5]
[391942750,1761017438888,-1500.0,0.00027123,30]
[391942751,1761017438910,-1500.0,0.00027123,30]
[391942752,1761017438920,-1075.51623286,0.00027123,30]
[391942753,1761017438930,-600.0,0.00027335,30]
[391942754,1761017438939,-240.0,0.00027353,2]
[391942755,1761017438949,-502.72934381,0.00027373,2]
[391942756,1761017438959,-500.0,0.00027373,2]
[391942757,1761017438969,-501.04966487,0.00027373,2]
[391942758,1761017438978,-503.97116798,0.00027373,2]
[391942759,1761017438988,-500.0,0.00027373,2]
[391942760,1761017438998,-502.18635699,0.00027373,2]
[391942761,1761017439009,-151.0,0.00027373,2]
[391942762,1761017439022,-11951.6900776,0.00027387,2]
[391942763,1761017439033,-2400.72785895,0.00027387,2]
[391942764,1761017439042,-763.78,0.00027397,2]
[391942765,1761017439052,-763.78,0.00027397,2]
[391942766,1761017439062,-763.78,0.00027397,2]
[391942767,1761017439072,-763.78,0.00027397,2]
[391942768,1761017439081,-763.78,0.00027397,2]
[391942769,1761017439091,-763.78,0.00027397,2]
[391942770,1761017439100,-763.78,0.00027397,2]
[391942771,1761017439110,-763.78,0.00027397,2]
[391942772,1761017439120,-763.78,0.00027397,2]
[391942773,1761017439130,-763.78,0.00027397,2]
[391942774,1761017439139,-763.78,0.00027397,2]
[391942775,1761017439149,-763.78,0.00027397,2]
[391942776,1761017439159,-763.78,0.00027397,2]
[391942777,1761017439169,-763.78,0.00027397,2]
[391942778,1761017439179,-763.78,0.00027397,2]
[391942779,1761017439188,-763.78,0.00027397,2]
[391942780,1761017439197,-763.78,0.00027397,2]
[391942781,1761017439207,-763.78,0.00027397,2]
[391942782,1761017439217,-763.78,0.00027397,2]
[391942783,1761017439226,-763.78,0.00027397,2]
[391942784,1761017439235,-763.78,0.00027397,2]
[391942785,1761017439244,-763.78,0.00027397,2]
[391942786,1761017439254,-763.78,0.00027397,2]
[391942787,1761017439263,-763.99424265,0.00027397,2]
[391942788,1761017439272,-1000.0,0.00027397,2]
[391942789,1761017439281,-1000.0,0.00027397,2]
[391942790,1761017439291,-1000.0,0.00027397,2]
[391942791,1761017439301,-917.87160162,0.00027397,2]
[391942792,1761017439311,-2946.06,0.00027397,2]
[391942793,1761017439321,-2946.06,0.00027397,2]
[391942794,1761017439331,-2946.06,0.00027397,2]
[391942795,1761017439340,-2946.06,0.00027397,2]
[391942796,1761017439350,-2946.06,0.00027397,2]
[391942797,1761017439359,-2946.06,0.00027397,2]
[391942798,1761017439368,-2946.06,0.00027397,2]
[391942799,1761017439378,-2946.06,0.00027397,2]
[391942800,1761017439388,-2946.06,0.00027397,2]
[391942801,1761017439398,-2946.06,0.00027397,2]
[391942802,1761017439408,-2946.06,0.00027397,2]
[391942803,1761017439417,-2946.06,0.00027397,2]
[391942804,1761017439427,-2946.06,0.00027397,2]
[391942805,1761017439439,-2946.06,0.00027397,2]
[391942806,1761017439449,-2946.06,0.00027397,2]
[391942807,1761017439458,-2946.06,0.00027397,2]
[391942808,1761017439467,-2946.06,0.00027397,2]
[391942809,1761017439477,-2946.06,0.00027397,2]
[391942810,1761017439486,-2946.06,0.00027397,2]
[391942811,1761017439495,-2946.06,0.00027397,2]
[391942812,1761017439504,-2946.06,0.00027397,2]
[391942813,1761017439513,-2946.06,0.00027397,2]
[391942814,1761017439523,-2946.06,0.00027397,2]
[391942815,1761017439532,-2946.28363653,0.00027397,2]
[391942816,1761017439541,-1000.0,0.00027397,2]
[391942817,1761017439553,-1000.0,0.00027397,2]
[391942818,1761017439562,-1000.0,0.00027397,2]
[391942819,1761017439571,-1000.0,0.00027397,2]
[391942820,1761017439580,-1000.0,0.00027397,2]
[391942821,1761017439590,-1000.0,0.00027397,2]
[391942822,1761017439599,-1000.0,0.00027397,2]
[391942823,1761017439608,-1000.0,0.00027397,2]
[391942824,1761017439618,-1000.0,0.00027397,2]
[391942825,1761017439627,-1000.0,0.00027397,2]
[391942826,1761017439636,-1000.0,0.00027397,2]
[391942827,1761017439645,-1000.0,0.00027397,2]
[391942828,1761017439654,-1000.0,0.00027397,2]
[391942829,1761017439663,-1000.0,0.00027397,2]
[391942830,1761017439672,-1000.0,0.00027397,2]
[391942831,1761017439681,-1000.0,0.00027397,2]
[391942832,1761017439692,-235.35184375,0.00027397,2]
[391942833,1761017439701,-1000.0,0.00027397,2]
[391942834,1761017439710,-561.36144824,0.00027397,2]
[391942835,1761017439719,-500.0,0.00027397,15]
[391942836,1761017439728,-1000.0,0.00027421,5]
[391942838,1761017439738,-151.0,0.00027428,2]
[391942840,1761017439747,-151.0,0.00027434,30]
[391942841,1761017439757,-151.0,0.00027434,30]
[391942843,1761017439766,-151.73006775,0.00027434,30]
[391942844,1761017439780,-151.0,0.00027434,30]
[391942845,1761017439788,-151.0,0.00027434,30]
[391942846,1761017439801,-151.0,0.00027434,30]
[391942847,1761017439811,-151.0,0.00027483,2]
[391942848,1761017439821,-249.92806897,0.00027489,30]
[391942849,1761017439830,-200.89396378,0.00027489,30]
[391942850,1761017439840,-151.0,0.00027489,30]
[391942851,1761017439851,-151.0,0.00027489,30]
[391942853,1761017439864,-151.0,0.00027489,30]
[391942855,1761017439874,-13552.65838401,0.000275,2]
[391942856,1761017439884,-527.879,0.00027534,16]
[391942857,1761017439895,-171.42879238,0.00027534,16]
[391942859,1761017439905,-151.0,0.00027537,2]
[391942860,1761017439915,-151.0,0.00027544,30]
[391942861,1761017439925,-151.0,0.00027544,30]
[391942862,1761017439935,-151.0,0.00027544,30]
[391942863,1761017439945,-151.0,0.00027592,2]
[391942864,1761017439954,-161.03137585,0.00027598,30]
[391942866,1761017439964,-151.0,0.00027598,30]
[391942867,1761017439973,-151.0,0.00027598,30]
[391942868,1761017439983,-153.79473155,0.00027647,2]
[391942869,1761017439993,-246.55921856,0.00027653,30]
[391942870,1761017440003,-247.5403656,0.00027653,30]
[391942872,1761017440012,-500.0,0.00027671,15]
[391942874,1761017440021,-442.61167003,0.00027744,2]